Cogmind - Beta 10.2 @@@ ROGUE MODE // 2022.02.27 @ 04:02:37 Player: W_W Result: Destroyed by G-67 Veteran with Plasma Rifle Performance ------------- Evolutions (6) 3000 Regions Visited (14) 2800 Robots Destroyed (260) 1300 Value Destroyed (9653) 9653 Prototype IDs (42) 840 Alien Tech Used (1) 200 Bonus (3670) 3670 TOTAL SCORE: 21463 Bonus ------- High Alert Combat Kills 2860 Follower Combat Kills 1129 Aligned with FarCom 300 Met Data Miner 300 Friendly Fire -919 Cogmind --------- Core Integrity 0/1150 Matter 104/300 Energy 88/100 System Corruption 4% Temperature Cool (33) Movement Core (50) Location -4/Factory Parts ------- > --- POWER (1) -------- (None) > --- PROPULSION (6) --- (None) > --- UTILITY (8) ------ (None) > --- WEAPON (4) ------- (None) > --- INVENTORY (4) ---- Humpback Tesla Rifle Peak State ------------ > --- POWER ------------ Micro Fission Core > --- PROPULSION ------- Nuclear Pulse Thruster Nuclear Pulse Array > --- UTILITY ---------- Improved Energy Well Improved Maneuvering Thrusters Hardened Medium Armor Plating Improved Light Armor Plating Improved Medium Armor Plating Layered Medium Armor Plating Insulated Plating > --- WEAPON ----------- Disruptor Cannon YOLO Cannon Advanced Assault Cannon > --- INVENTORY -------- Recoil Nullifier Magnetic Acceleration Cannon [Rating: 84] Favorites ----------- Power Light Angular Momentum Engine Engine Light Angular Momentum Engine Power Core Micro Fission Core Propulsion Light Treads Treads Light Treads Leg Flexi-carbon Leg Hover Unit Backup Propulsion I Flight Unit Nuclear Pulse Array Utility Humpback Device Makeshift System Restoration Module Storage Humpback Hackware Improved System Shield Protection Heavy Armor Plating Weapon KE Penetrator Energy Gun EM Pulse Gun Energy Cannon Plasma Cannon Ballistic Gun KE Penetrator Ballistic Cannon Magnetic Acceleration Cannon Launcher Heavy Rocket Launcher Special Weapon Plasma Cutter Slashing Weapon Power Sword Build | -11 -10 -10 -10 -9 -8 -7 -7 -7 -7 -6 -6 -6 -5 -4 ------- Run | Scr Mat Min Exi Min Mat Fac Low Low Dat Pro Fac Ext Fac Fac Slots Evolved 12 | . . . . . 4 2 . . . . 2 . 2 2 Power . | . . . . . . . . . . . . . . . Propulsion 4 | . . . . . . . . . . . . . 2 2 Utility 6 | . . . . . 2 2 . . . . 2 . . . Weapon 2 | . . . . . 2 . . . . . . . . . Parts Attached 201 | 9 4 5 2 . 24 9 5 9 . 14 32 28 49 11 Power 20 | 1 1 2 . . 6 . . . . . 4 1 5 . Engine 13 | 1 1 2 . . 2 . . . . . 4 . 3 . Core 7 | . . . . . 4 . . . . . . 1 2 . Reactor . | . . . . . . . . . . . . . . . Propulsion 40 | 2 . 2 . . 7 1 . 1 . 4 6 6 9 2 Treads 24 | 2 . 2 . . 7 1 . 1 . 4 5 . 2 . Leg 6 | . . . . . . . . . . . . 4 2 . Wheel . | . . . . . . . . . . . . . . . Hover 1 | . . . . . . . . . . . 1 . . . Flight 9 | . . . . . . . . . . . . 2 5 2 Utility 57 | 3 1 . 2 . 3 2 2 1 . 4 9 11 16 3 Device 14 | . . . . . 1 . . . . . 1 3 7 2 Storage 13 | 3 1 . 2 . 1 1 . . . 1 3 1 . . Processor . | . . . . . . . . . . . . . . . Hackware 2 | . . . . . . . . . . . 2 . . . Protection 28 | . . . . . 1 1 2 1 . 3 3 7 9 1 Artifact . | . . . . . . . . . . . . . . . Weapon 84 | 3 2 1 . . 8 6 3 7 . 6 13 10 19 6 Energy Gun 9 | 3 1 . . . . . . . . . 1 . 2 2 Energy Cannon 22 | . . . . . 1 2 1 1 . . . 3 13 1 Ballistic Gun 16 | . 1 . . . 2 . . 2 . 3 4 2 . 2 Ballistic Cannon 12 | . . . . . 1 1 . 1 . 1 1 3 4 . Launcher 18 | . . 1 . . 3 3 2 3 . 1 4 1 . . Special Weapon 1 | . . . . . . . . . . . . . . 1 Impact Weapon . | . . . . . . . . . . . . . . . Slashing Weapon 6 | . . . . . 1 . . . . 1 3 1 . . Piercing Weapon . | . . . . . . . . . . . . . . . Special Melee Weapon . | . . . . . . . . . . . . . . . Unidentified Prototypes 7 | . . . . . 1 . . . . 1 2 . 3 . Parts Lost 61 | . 2 1 . . 6 . 1 5 . 8 9 5 16 8 Power 6 | . . 1 . . 1 . . . . . 1 1 2 . Propulsion 10 | . . . . . . . . 1 . 3 2 . 2 2 Utility 20 | . . . . . . . 1 1 . 3 3 3 8 1 Weapon 25 | . 2 . . . 5 . . 3 . 2 3 1 4 5 Highest Loss Streak 5 | . 1 1 . . 3 . 1 5 . 2 3 1 4 5 Average Slot Usage (%) 77 | . 99 98 87 85 80 75 75 75 76 75 82 90 57 20 Engine 6 | . 14 12 14 14 4 7 7 7 7 7 5 2 . . Core 1 | . . . . . 4 . . . . . . 3 3 . Treads 14 | . 28 28 28 28 18 15 15 14 15 14 13 7 . . Device 1 | . . . . . 1 . . . . . 1 8 11 2 Storage 13 | . 28 28 16 14 16 15 15 15 15 15 13 9 3 . Hackware 1 | . . . . . . . . . . . 9 3 . . Protection 7 | . . . . . 1 6 6 7 7 7 9 21 14 5 Energy Gun 2 | . 25 14 14 14 1 . . . . . . . 5 3 Energy Cannon 3 | . . . . . . 10 14 11 . . . 2 1 . Ballistic Gun 7 | . 2 11 . . 6 . . 3 15 14 18 9 . 4 Ballistic Cannon 3 | . . . . . 8 . . 1 7 7 1 7 2 . Launcher 8 | . . 2 14 14 14 19 15 12 7 5 4 3 . . Naked Turns . | . . . . . . . . . . . . . . . Heaviest Build 220 | 13 21 22 90 90 187 210 209 209 199 211 220 215 76 18 Greatest Support 58 | 40 40 40 40 40 40 40 40 40 40 48 58 50 47 20 Greatest Overweight (x) 9 | . . . 2 2 4 5 5 5 4 9 5 7 5 3 Average Overweight (x) 2 | . . . 1 2 3 4 4 4 4 4 3 2 . . Largest Inventory Capacity 64 | 6 10 10 24 24 44 64 44 44 44 44 44 44 4 4 Average Capacity 35 | 5 9 10 20 24 40 44 44 44 44 43 43 26 4 4 Most Carried 44 | 5 10 10 21 21 44 44 44 44 37 44 44 44 4 4 Average Carried 33 | 2 8 9 15 19 38 43 43 41 37 41 43 26 3 3 Final Capacity 44 | 6 10 10 24 24 44 44 44 44 44 44 44 4 4 4 Final Carried 44 | 5 10 10 19 21 44 44 43 37 37 44 44 4 4 3 Class Distribution -------------------- 42% | Hauler-Mutant 26% | Hauler-Tank 13% | Hauler-Skirmisher 12% | Mutant 3% | Scavenger-Tank Dominant Class ---------------- Mutant | -10/Materials Mutant | -10/Mines Hauler-Mutant | -10/Exiles Hauler-Mutant | -9/Mines Hauler-Mutant | -8/Materials Hauler-Skirmisher | -7/Factory Hauler-Mutant | -7/Lower Caves Hauler-Mutant | -7/Lower Caves Hauler-Tank | -7/Data Miner Hauler-Mutant | -6/Proximity Caves Hauler-Skirmisher | -6/Factory Hauler-Tank | -6/Extension Mutant | -5/Factory Mutant | -4/Factory Resources | -11 -10 -10 -10 -9 -8 -7 -7 -7 -7 -6 -6 -6 -5 -4 ----------- Run | Scr Mat Min Exi Min Mat Fac Low Low Dat Pro Fac Ext Fac Fac Matter Collected 8887 | 304 180 64 40 7 1251 378 498 296 . 1510 2495 1226 468 170 Remotely 578 | . . . . . . . . . . . 578 . . . Salvage Created 9215 | 302 368 147 . . 2077 142 267 177 . 1081 2549 599 1365 141 Parts 421 | 23 14 10 . . 132 7 5 4 . 40 105 31 38 12 Haulers Intercepted 6 | . 1 . . . 2 . . . . . . . 3 . Recyclers Shooed 12 | . 1 . . . 3 . . . . . 4 3 1 . Parts Field Recycled . | . . . . . . . . . . . . . . . Retrieved Matter . | . . . . . . . . . . . . . . . Parts Self-Destructed 55 | . . . . . . . 5 4 . 46 . . . . Prevented . | . . . . . . . . . . . . . . . Kills | -11 -10 -10 -10 -9 -8 -7 -7 -7 -7 -6 -6 -6 -5 -4 ------- Run | Scr Mat Min Exi Min Mat Fac Low Low Dat Pro Fac Ext Fac Fac Combat Hostiles Destroyed 177 | . 3 3 . . 45 5 8 5 . 27 35 12 28 6 Melee 2 | . . . . . . . . 1 . 1 . . . . Guns 46 | . 2 2 . . 8 . . . . 6 22 5 . 1 Cannons 34 | . . . . . 12 3 2 2 . 5 1 . 9 . AOE 93 | . . 1 . . 25 2 6 2 . 15 12 7 18 5 Classes Destroyed 18 | 3 3 1 . . 7 . 1 2 . . 1 . . . Worker 17 | 4 . 1 . . 6 . . . . . 5 . 1 . Builder 17 | . 1 . . . 7 . . . . . 6 3 . . Tunneler 10 | 8 . . . . 2 . . . . . . . . . Hauler 6 | . 1 . . . 2 . . . . . . . 3 . Recycler 17 | 1 2 . . . 5 . . . . . 5 2 2 . Operator 2 | . . . . . 2 . . . . . . . . . Watcher 10 | . . . . . 4 . . . . 1 3 2 . . Swarmer 26 | . . . . . . . . 1 . 5 3 4 8 5 Grunt 75 | . 3 2 . . 26 4 2 1 . 11 13 . 13 . Brawler 13 | . . . . . 4 . 1 . . 3 4 . 1 . Duelist 7 | . . . . . 3 . 1 . . 1 2 . . . Protector 4 | . . . . . 3 . . . . . . 1 . . Sentry 24 | . . . . . 7 1 1 1 . 6 6 2 . . Demolisher 1 | . . 1 . . . . . . . . . . . . Hunter 14 | . . . . . 2 . 1 1 . . 3 5 2 . Programmer 11 | . . . . . . . . . . . 6 . 4 1 Behemoth 2 | . . . . . . . . 1 . 1 . . . . Enhanced Grunt 1 | . . . . . . . . . . 1 . . . . Decomposer 1 | . . . . . . . . 1 . . . . . . Thief 2 | . . . . . . . 2 . . . . . . . Thug 1 | . . . . . 1 . . . . . . . . . Best Kill Streak 18 | 3 2 2 . . 18 5 3 3 . 5 7 9 11 6 Combat Bots Only 14 | . 2 2 . . 14 5 3 3 . 5 5 6 10 6 Max Kills in Single Turn 5 | 1 1 1 . . 5 2 2 2 . 3 4 4 4 5 Gunslinging . | . . . . . . . . . . . . . . . Exploded 5 | . . 1 . . 5 2 2 2 . 2 2 2 2 5 Melee 1 | . . . . . . . . 1 . 1 . . . . Uniques/NPCs Destroyed . | . . . . . . . . . . . . . . . Combat | -11 -10 -10 -10 -9 -8 -7 -7 -7 -7 -6 -6 -6 -5 -4 -------- Run | Scr Mat Min Exi Min Mat Fac Low Low Dat Pro Fac Ext Fac Fac Damage Taken 15147 | 40 401 131 . . 1695 326 575 1114 . 1610 2687 1667 3105 1796 Core 3426 | . 22 14 . . 131 68 39 135 . 52 348 468 989 1160 Absorbed by Shields 57 | . . . . . . . . . . . . 57 . . Core Remaining (%) 54 | 100 . . . 85 76 . . . . 58 . 4 1 . Volleys Fired 487 | 25 27 9 . . 112 6 22 18 . 57 111 35 58 7 Largest 4 | 2 2 2 . . 4 4 4 4 . 4 4 4 4 2 Hottest 284 | 80 80 60 . . 151 284 232 232 . 129 158 221 221 100 Shots Fired 1169 | 50 46 18 . . 211 16 45 46 . 141 347 123 118 8 Gun 727 | 50 46 18 . . 86 . . 8 . 77 305 73 57 7 Cannon 306 | . . . . . 92 14 34 22 . 39 18 32 54 1 Launcher 136 | . . . . . 33 2 11 16 . 25 24 18 7 . Special . | . . . . . . . . . . . . . . . Kinetic 763 | . 4 9 . . 167 2 . 8 . 116 323 103 27 4 Thermal 161 | 6 11 . . . . 12 34 22 . . . . 75 1 Explosive 136 | . . . . . 33 2 11 16 . 25 24 18 7 . Electromagnetic 109 | 44 31 9 . . 11 . . . . . . 2 9 3 Robot Hit Streak 15 | 15 9 11 . . 7 4 10 8 . 10 14 8 9 5 Robot Miss Streak 12 | 2 3 2 . . 9 2 1 4 . 12 8 6 4 1 Penetration Max 1 | . . . . . 1 . . . . 1 1 1 . . Secondary Targets 2 | . . . . . . . . . . . 2 . . . Max Gunslinging Chain 1 | . . . . . . . . . . . 1 . . . Shots Hit Robots 672 | 29 29 13 . . 110 10 28 30 . 74 210 68 66 5 Core Hits 584 | 15 14 6 . 1 132 11 19 15 . 91 156 47 65 12 Critical Hits 54 | . . . . . 29 . . 1 . 2 11 5 6 . Critical Kills 24 | . . . . . 13 . . . . . 6 1 4 . Critical Parts Destroyed 27 | . . . . . 15 . . 1 . . 5 4 2 . Melee Attacks 29 | . . . . . 21 . . . . 3 5 . . . Impact . | . . . . . . . . . . . . . . . Slashing 29 | . . . . . 21 . . . . 3 5 . . . Piercing . | . . . . . . . . . . . . . . . Sneak Attacks 4 | . . . . . 4 . . . . . . . . . Combat Hostiles . | . . . . . . . . . . . . . . . Follow-up Attacks . | . . . . . . . . . . . . . . . Damage Inflicted 31601 | 478 549 233 . 23 5819 869 1117 1687 . 3723 7040 2758 6757 548 Guns 8649 | 349 451 155 . . 1022 . . 190 . 982 3853 1075 469 103 Cannons 5790 | . . . . . 880 204 553 612 . 651 218 314 2358 . Explosions 16618 | 122 85 64 . . 3616 665 564 875 . 2068 2827 1357 3930 445 Melee 283 | . . . . . 283 . . . . . . . . . Ramming 261 | 7 13 14 . 23 18 . . 10 . 22 142 12 . . Kinetic 9652 | . 22 52 . . 1790 24 . 190 . 1633 4071 1389 406 75 Thermal 8513 | 188 172 64 . . 99 615 553 705 . . 726 146 4885 360 Explosive 11815 | . . . . . 3517 230 564 782 . 2068 2101 1211 1342 . Electromagnetic 1077 | 283 342 103 . . 112 . . . . . . . 124 113 Impact . | . . . . . . . . . . . . . . . Slashing 283 | . . . . . 283 . . . . . . . . . Piercing . | . . . . . . . . . . . . . . . Highest Corruption 14 | . . . . . . . . . . 5 11 11 14 4 Average Corruption 4 | . . . . . . . . . . 5 1 6 7 2 Corruption Purged 11 | . . . . . . . . . . . . 11 . . Effects 222 | . . . . . . . . . . 70 39 36 75 2 Message Errors 59 | . . . . . . . . . . 15 16 7 21 . Matter Fused 47 | . . . . . . . . . . 22 6 9 10 . Heat Flow Errors 27 | . . . . . . . . . . 8 3 5 11 . Energy Discharges 19 | . . . . . . . . . . 7 5 3 3 1 Parts Rejected 3 | . . . . . . . . . . . . . 2 1 Data Loss (minor) 17 | . . . . . . . . . . 8 3 3 3 . Data Loss (major) 6 | . . . . . . . . . . 4 . 1 1 . Misfires 7 | . . . . . . . . . . 2 . 2 3 . Alerts 1 | . . . . . . . . . . . . . 1 . Misdirections 17 | . . . . . . . . . . . 3 1 13 . Targeting Errors 17 | . . . . . . . . . . 3 3 5 6 . Weapon Failures 2 | . . . . . . . . . . 1 . . 1 . Overload Shots . | . . . . . . . . . . . . . . . Overflow Damage 1410 | 22 12 . . . 136 99 54 53 . 58 149 113 681 33 Projectiles 510 | . . . . . . . 48 39 . 5 . 6 412 . Explosions 866 | 22 12 . . . 110 99 6 14 . 53 141 107 269 33 Melee 34 | . . . . . 26 . . . . . 8 . . . Knockbacks 20 | . . . . . 5 . . . . 5 2 5 3 . Impact . | . . . . . . . . . . . . . . . Kinetic 18 | . . . . . 4 . . . . 4 2 5 3 . Secondary 2 | . . . . . 1 . . . . 1 . . . . Self-Inflicted Damage 1817 | 40 35 40 . . 263 186 113 17 . 159 323 261 253 127 Shots 46 | 1 1 1 . . 7 3 5 1 . 4 8 8 5 2 Rammed 24 | 1 2 3 . 4 1 . . 1 . 2 9 1 . . Targets Rammed 31 | 2 3 4 . 4 2 . . 1 . 2 10 3 . . Kicked 2 | . . . . . . . . . . . . 2 . . Crushed 5 | 1 1 1 . . 1 . . . . . 1 . . . Highest Temperature 859 | 102 252 19 . . 393 453 608 629 . 417 635 721 859 2 Average Temperature 136 | 34 80 12 . . 70 169 216 247 . 122 124 157 193 1 Received Heat Transfer 2578 | . 195 54 . . 648 54 114 144 . 312 474 76 423 84 Effects 94 | . . . . . 3 1 7 15 . 4 14 15 35 . Shutdowns 5 | . . . . . 1 . . 2 . 1 . . 1 . Energy Bleed 18 | . . . . . 2 . 2 3 . 1 1 5 4 . Interference 25 | . . . . . . . 2 3 . 2 6 3 9 . Matter Decay 6 | . . . . . . . . . . . 2 . 4 . Short Circuit 6 | . . . . . . . 1 1 . . . 3 1 . Damage (minor) 13 | . . . . . . 1 2 3 . . 3 1 3 . Damage (major) 12 | . . . . . . . . 2 . . . . 10 . Damage (core) 9 | . . . . . . . . 1 . . 2 3 3 . Siege Activations . | . . . . . . . . . . . . . . . Robots Corrupted 2 | . 1 . . . . . . . . . . . 1 . Combat Hostiles 2 | . 1 . . . . . . . . . . . 1 . Parts Fried 4 | 2 . . . . . . . . . . . . 2 . Impact Corruptions 2 | . . . . . . . . . . . 2 . . . Robots Melted . | . . . . . . . . . . . . . . . Combat Hostiles . | . . . . . . . . . . . . . . . Parts Melted 10 | . . . . . . 1 . 1 . . . . 8 . Heat Transferred 9297 | 300 350 50 . . 50 600 1100 890 . . 550 25 4982 400 Parts Sabotaged 2 | . . . . . . . . . . . . . 2 . Parts Stolen 1 | . . . . . . . 1 . . . . . . . Parts Stripped . | . . . . . . . . . . . . . . . Power Chain Reactions 7 | 3 2 1 . . . . . . . . . . . 1 Missiles Intercepted . | . . . . . . . . . . . . . . . Alert | -11 -10 -10 -10 -9 -8 -7 -7 -7 -7 -6 -6 -6 -5 -4 ------- Run | Scr Mat Min Exi Min Mat Fac Low Low Dat Pro Fac Ext Fac Fac Peak Influence 2574 | 65 110 106 . . 1284 637 . . . . 1584 1076 2574 1702 Initial 1246 | . 42 23 . . . 583 . . . . . 772 527 1246 Average 671 | 31 76 65 . . 576 564 . . . . 536 844 1364 1419 Maximum Alert Level 5 | . . . . . 4 2 . . . . 4 3 5 5 Low Security (%) 27 | 100 100 100 . 100 17 . . . . . 37 . . . Level 1 4 | . . . . . 17 . . . . . 3 . . . Level 2 25 | . . . . . 26 100 . . . . 32 22 15 . Level 3 24 | . . . . . 30 . . . . . 11 77 26 . Level 4 11 | . . . . . 8 . . . . . 14 . 12 94 Level 5 6 | . . . . . . . . . . . . . 45 5 High Security . | . . . . . . . . . . . . . . . Max Security . | . . . . . . . . . . . . . . . Squads Dispatched 71 | . 1 . . . 12 3 . . . . 21 3 22 9 Investigation 9 | . . . . . 2 . . . . . . . 4 3 Extermination 12 | . . . . . . 1 . . . . 7 . 3 1 Reinforcement 19 | . 1 . . . 7 . . . . . 4 2 4 1 Assault 24 | . . . . . 3 2 . . . . 6 1 8 4 Garrison 7 | . . . . . . . . . . . 4 . 3 . Intercept . | . . . . . . . . . . . . . . . Construction Impeded 11 | . . . . . 4 . . . . . 4 1 2 . Haulers Reinforced 1 | . . . . . . . . . . . . . 1 . Stealth | -11 -10 -10 -10 -9 -8 -7 -7 -7 -7 -6 -6 -6 -5 -4 --------- Run | Scr Mat Min Exi Min Mat Fac Low Low Dat Pro Fac Ext Fac Fac Distress Signals 19 | . . . . . 4 . . . . 3 1 2 7 2 Communications Jammed . | . . . . . . . . . . . . . . . Distress Signals . | . . . . . . . . . . . . . . . Times Spotted 414 | . 15 2 . 1 68 6 17 4 . 35 60 33 113 60 Peak Tracking Total 20 | . 4 1 . 3 11 4 5 3 . 7 8 5 14 20 Tactical Retreats 52 | . 1 . . . 2 1 8 . . 3 . 1 30 6 Traps | -11 -10 -10 -10 -9 -8 -7 -7 -7 -7 -6 -6 -6 -5 -4 ------- Run | Scr Mat Min Exi Min Mat Fac Low Low Dat Pro Fac Ext Fac Fac Traps Triggered 21 | . 1 . . . 1 . . . . 1 . 10 7 1 Indirectly . | . . . . . . . . . . . . . . . Trap Hack Attempts . | . . . . . . . . . . . . . . . Triggered . | . . . . . . . . . . . . . . . Disarmed . | . . . . . . . . . . . . . . . Reprogrammed . | . . . . . . . . . . . . . . . Reused . | . . . . . . . . . . . . . . . Traps Extracted . | . . . . . . . . . . . . . . . Installed . | . . . . . . . . . . . . . . . Triggered . | . . . . . . . . . . . . . . . Machines | -11 -10 -10 -10 -9 -8 -7 -7 -7 -7 -6 -6 -6 -5 -4 ---------- Run | Scr Mat Min Exi Min Mat Fac Low Low Dat Pro Fac Ext Fac Fac Machines Disabled 60 | . . . . . 8 2 . . . 1 17 10 20 2 Max in Single Turn 7 | . . . . . 3 2 . . . 1 4 2 7 2 Energy Cycler 5 | . . . . . . . . . . . . 5 . . Machines Sabotaged . | . . . . . . . . . . . . . . . Garrisons Compromised . | . . . . . . . . . . . . . . . Overloaded Fab Kills . | . . . . . . . . . . . . . . . Fab Network Shutdowns 1 | . . . . . . . . . . . 1 . . . Hacking | -11 -10 -10 -10 -9 -8 -7 -7 -7 -7 -6 -6 -6 -5 -4 --------- Run | Scr Mat Min Exi Min Mat Fac Low Low Dat Pro Fac Ext Fac Fac Machines Accessed 63 | . 2 1 2 . 7 4 3 . 4 3 8 10 12 7 Terminals 29 | . 1 1 . . 5 2 . . . 1 3 9 4 3 Fabricators 6 | . . . . . . 1 . . . . 1 . 3 1 Repair Stations 3 | . . . . . 1 . . . . . . 1 1 . Recycling Units 6 | . 1 . . . . . . . . 1 . . 3 1 Scanalyzers 5 | . . . . . 1 1 . . . . 2 . . 1 Garrison Access 4 | . . . . . . . . . . . 2 . 1 1 Total Hacks 231 | . 5 6 24 . 37 11 7 . 25 4 48 15 32 17 Successful 154 | . 2 2 24 . 27 6 7 . 25 3 37 8 8 5 Failed 77 | . 3 4 . . 10 5 . . . 1 11 7 24 12 Catastrophic 14 | . . . . . 1 1 . . . . . 3 5 4 Database Lockouts . | . . . . . . . . . . . . . . . Manual 56 | . 5 2 1 . 15 8 . . . . 18 . 3 4 Terminals 72 | . 3 6 . . 15 6 . . . 2 12 13 8 7 Fabricators 19 | . . . . . . 4 . . . . 4 . 8 3 Repair Stations 9 | . . . . . 2 . . . . . . 2 5 . Recycling Units 13 | . 2 . . . . . . . . 1 . . 8 2 Scanalyzers 49 | . . . . . 20 1 . . . . 25 . . 3 Garrison Access 12 | . . . . . . . . . . . 7 . 3 2 Terminal Hacks 72 | . . . 24 . 1 2 7 . 25 2 3 6 . 2 Record 41 | . . . 23 . . . 5 . 11 1 1 . . . Part Schematic 5 | . . . . . . . . . 5 . . . . . Robot Schematic 6 | . . . . . . . . . 6 . . . . . Prototype ID Bank 4 | . . . . . . . . . 3 . . 1 . . Open Door 7 | . . . . . . . 2 . . 1 . 4 . . Emergency Access Points 1 | . . . . . . 1 . . . . . . . . Terminal Index 4 | . . . . . 1 1 . . . . 1 . . 1 Fabricator Index 1 | . . . . . . . . . . . 1 . . . Recycling Unit Index 1 | . . . . . . . . . . . . . . 1 Recall Reinforcements 1 | . . . . . . . . . . . . 1 . . EX-Prototype ID Bank 1 | . . . 1 . . . . . . . . . . . Fabricator Hacks 7 | . . . . . . . . . . . 4 . 2 1 Load Schematic 3 | . . . . . . . . . . . 1 . 1 1 Build 4 | . . . . . . . . . . . 3 . 1 . Repair Station Hacks 7 | . . . . . 2 . . . . . . 2 3 . Scan Component 3 | . . . . . 1 . . . . . . 1 1 . Repair 3 | . . . . . 1 . . . . . . 1 1 . Refit 1 | . . . . . . . . . . . . . 1 . Recycling Unit Hacks 4 | . . . . . . . . . . 1 . . 2 1 Retrieve Matter 3 | . . . . . . . . . . . . . 2 1 Retrieve Components 1 | . . . . . . . . . . 1 . . . . Scanalyzer 44 | . . . . . 20 . . . . . 23 . . 1 Insert Component 21 | . . . . . 10 . . . . . 10 . . 1 Analyze 23 | . . . . . 10 . . . . . 13 . . . Garrison Access Hacks . | . . . . . . . . . . . . . . . Unauthorized Hacks 20 | . 2 2 . . 4 4 . . . . 7 . 1 . Terminals 13 | . 1 2 . . 4 2 . . . . 4 . . . Track 1 | . . 1 . . . . . . . . . . . . Assimilate 2 | . . . . . 1 . . . . . 1 . . . Botnet 10 | . 1 1 . . 3 2 . . . . 3 . . . Fabricators 2 | . . . . . . 2 . . . . . . . . Report 1 | . . . . . . 1 . . . . . . . . Siphon 1 | . . . . . . 1 . . . . . . . . Repair Stations . | . . . . . . . . . . . . . . . Recycling Units 1 | . 1 . . . . . . . . . . . . . Mask 1 | . 1 . . . . . . . . . . . . . Scanalyzers . | . . . . . . . . . . . . . . . Garrison Access 4 | . . . . . . . . . . . 3 . 1 . Decoy 1 | . . . . . . . . . . . 1 . . . Reprogram 3 | . . . . . . . . . . . 2 . 1 . Data Cores Recovered 1 | . . . . . 1 . . . . . . . . . Used . | . . . . . . . . . . . . . . . Hacking Detections 49 | . 2 1 . . 7 4 . . . 1 8 7 12 7 Full Trace Events 6 | . . . . . . . . . . . . . 3 3 Feedback Events . | . . . . . . . . . . . . . . . Feedback Blocked . | . . . . . . . . . . . . . . . Robot Schematics Acquired 6 | . . . . . . . . . 6 . . . . . Robots Built 1 | . . . . . . . . . . . 1 . . . Matter 153 | . . . . . . . . . . . 153 . . . Time 40 | . . . . . . . . . . . 40 . . . Total Robot Build Rating 1 | . . . . . . . . . . . 1 . . . Part Schematics Acquired 25 | . . . . . 10 . . . 5 . 10 . . . Parts Built 3 | . . . . . . . . . . . 2 . 1 . Matter 306 | . . . . . . . . . . . 204 . 102 . Time 101 | . . . . . . . . . . . 50 . 51 . Total Part Build Rating 3 | . . . . . . . . . . . 2 . 1 . Parts Repaired 3 | . . . . . 1 . . . . . . 1 1 . Time 113 | . . . . . 19 . . . . . . 38 56 . Parts Recycled . | . . . . . . . . . . . . . . . Recycled Matter . | . . . . . . . . . . . . . . . Retrieved Matter 30 | . . . . . . . . . . . . . 30 . Retrieved Components 10 | . . . . . . . . . . 10 . . . . Parts Scanalyzed 21 | . . . . . 10 . . . . . 10 . . 1 Part Schematics Acquired 20 | . . . . . 10 . . . . . 10 . . . Parts Damaged 2 | . . . . . 1 . . . . . 1 . . . Bothacking | -11 -10 -10 -10 -9 -8 -7 -7 -7 -7 -6 -6 -6 -5 -4 ------------ Run | Scr Mat Min Exi Min Mat Fac Low Low Dat Pro Fac Ext Fac Fac Used RIF Installer . | . . . . . . . . . . . . . . . Robots Hacked . | . . . . . . . . . . . . . . . Non-combat . | . . . . . . . . . . . . . . . Combat . | . . . . . . . . . . . . . . . Robot Hacks Applied . | . . . . . . . . . . . . . . . Relay Couplers Released 3 | . . . . . . . . . . . 3 . . . Programmers 3 | . . . . . . . . . . . 3 . . . Robots Rewired 23 | . . . . . . . . . . 13 . 10 . . Allies Hacked . | . . . . . . . . . . . . . . . Hacks Repelled . | . . . . . . . . . . . . . . . Allies | -11 -10 -10 -10 -9 -8 -7 -7 -7 -7 -6 -6 -6 -5 -4 -------- Run | Scr Mat Min Exi Min Mat Fac Low Low Dat Pro Fac Ext Fac Fac Total Allies 39 | . . . . 2 . . . . . 14 4 18 1 . Largest Group 8 | . . . . 2 2 . . . . 8 4 8 7 . Highest-Rated Group 319 | . . . . 46 46 . . . . 220 128 319 319 . Highest-Rated Ally 156 | . . . . 31 31 . . . . 94 54 156 156 . Total Orders 4 | . . . . . . . . . . 2 2 . . . STAY 2 | . . . . . . . . . . 1 1 . . . FOLLOW 2 | . . . . . . . . . . 1 1 . . . Ally Attacks 228 | . . . . . 8 . . . . 78 16 85 41 . Total Damage 4933 | . . . . . 123 . . . . 1929 207 1946 728 . Kills 38 | . . . . . 2 . . . . 8 3 20 5 . Allies Corrupted 2 | . . . . . . . . . . 2 . . . . Allies Melted . | . . . . . . . . . . . . . . . Intel | -11 -10 -10 -10 -9 -8 -7 -7 -7 -7 -6 -6 -6 -5 -4 ------- Run | Scr Mat Min Exi Min Mat Fac Low Low Dat Pro Fac Ext Fac Fac Robot Analysis Total . | . . . . . . . . . . . . . . . Derelict Logs Recovered 6 | . . 2 . 1 . . 1 . . 2 . . . . Drone Launches . | . . . . . . . . . . . . . . . Drone Recoveries . | . . . . . . . . . . . . . . . Exploration | -11 -10 -10 -10 -9 -8 -7 -7 -7 -7 -6 -6 -6 -5 -4 ------------- Run | Scr Mat Min Exi Min Mat Fac Low Low Dat Pro Fac Ext Fac Fac Turns Passed 30133 | 322 504 465 1133 815 3592 854 4209 3275 202 4414 5084 2376 2172 716 Spaces Moved 14385 | 146 254 262 589 401 1099 327 1586 1252 85 1622 1730 1050 3100 882 Core 82 | 9 . . . . . . . . . . . . 18 55 Treads 9836 | 137 254 262 589 401 1099 327 1586 1252 85 1622 1730 480 12 . Legs 652 | . . . . . . . . . . . . 570 82 . Wheels . | . . . . . . . . . . . . . . . Hover 12 | . . . . . . . . . . . . . 12 . Flight 3803 | . . . . . . . . . . . . . 2976 827 Fastest Speed 34 | 50 160 160 160 200 200 240 240 240 240 240 220 150 34 40 Average Speed 179 | 153 160 160 189 200 233 246 259 255 240 246 239 192 47 45 Slowest Speed 340 | 160 160 160 200 200 240 260 260 260 240 340 260 330 270 200 Overloaded Moves . | . . . . . . . . . . . . . . . Propulsion Burnouts . | . . . . . . . . . . . . . . . Robots Hopped 50 | . . . . . . . . . . . 1 . 42 7 Cave-ins Triggered . | . . . . . . . . . . . . . . . Exploration Rate (%) 58 | 6 39 51 92 76 63 9 99 99 68 94 28 82 48 20 Regions Visited 14 Branch Regions 8 Pre-discovered Areas 4 | . . . 1 . . . 2 . 1 . . . . . Known Exits Taken 4 | . . . . . 1 . . . . 1 1 1 . . Unknown Exits Taken 10 | 1 1 1 1 1 . 1 1 1 1 . . . 1 . Scrap Searched 10 | . . . . 1 . . 3 3 . 3 . . . . Spaces Dug 70 | . . . . . 19 . 7 11 . 15 18 . . . Terrain Destroyed 1576 | 8 5 3 . . 363 56 104 82 . 141 310 253 249 2 Melee 11 | . . . . . 6 . . . . . 5 . . . Projectile 131 | . . . . . 50 . 1 1 . 5 38 29 7 . AOE 1434 | 8 5 3 . . 307 56 103 81 . 136 267 224 242 2 Terrain Rammed . | . . . . . . . . . . . . . . . Walls Destroyed . | . . . . . . . . . . . . . . . Machines Disabled . | . . . . . . . . . . . . . . . Actions | -11 -10 -10 -10 -9 -8 -7 -7 -7 -7 -6 -6 -6 -5 -4 --------- Run | Scr Mat Min Exi Min Mat Fac Low Low Dat Pro Fac Ext Fac Fac Total 17601 | 189 306 289 609 411 1902 368 1646 1293 84 1940 2427 1326 3633 1178 Wait 1856 | 5 4 . . 5 565 9 16 4 . 15 423 108 422 280 Move 14276 | 145 253 261 588 400 1098 326 1585 1251 84 1621 1727 1049 3020 868 Hop 45 | . . . . . . . . . . . 1 . 37 7 Pick Up 242 | 3 10 5 14 2 49 8 6 4 . 40 80 10 8 3 Fast Attach 80 | 7 1 1 1 . 7 . 2 . . 4 6 11 31 9 Attach 62 | . 2 1 . . 8 2 1 8 . 7 13 3 15 2 Detach 14 | . . . . . . 1 . 2 . 1 . . 10 . Swap 61 | 2 1 3 1 . 10 7 2 1 . 4 13 14 3 . Drop 170 | . 5 5 5 . 30 9 7 4 . 18 38 18 29 2 Fire 487 | 25 27 9 . . 112 6 22 18 . 57 111 35 58 7 Melee 29 | . . . . . 21 . . . . 3 5 . . . Ram . | . . . . . . . . . . . . . . . Kick 2 | . . . . . . . . . . . . 2 . . Crush 29 | 2 3 4 . 4 2 . . 1 . 2 10 1 . . Escape Stasis 19 | . . . . . . . . . . . . 19 . . Rewire 229 | . . . . . . . 5 . . 168 . 56 . . Trap . | . . . . . . . . . . . . . . . Miscellaneous . | . . . . . . . . . . . . . . . Route ------- -11/Scrapyard -10/Materials (discovered 2 exits: *Min x2) -10/Mines -10/Exiles (discovered 2 exits: [*Min x2]) -9/Mines (discovered 2 exits: *Mat x2) -8/Materials (discovered 3 exits: *Fac x3) -7/Factory -7/Lower Caves -7/Lower Caves (discovered 2 exits: *Fac / *Dat) -7/Data Miner -6/Proximity Caves -6/Factory (discovered 4 exits: Fac x2 / [*Low] / *Ext) -6/Extension (discovered 3 exits: *Fac x2 / [*Cet]) -5/Factory (discovered 2 exits: *Fac x2) -4/Factory History --------- Turn | Location | Event 15 | -11/Scrapyard | Discovered new exit (range 15) 323 | -11/Scrapyard | Entered Materials 341 | -10/Materials | Build established: Mutant 371 | -10/Materials | Discovered new exit (range 8) 749 | -10/Materials | Discovered new exit (range 7) 827 | -10/Materials | Entered Mines 877 | -10/Mines | Assembled infested the area 913 | -10/Mines | Learned 2 Materials zone layouts 926 | -10/Mines | Learned 2 Materials zone layouts 1197 | -10/Mines | YI-UF0 nonchalantly dropped a Grenade Launcher on the ground 1286 | -10/Mines | Discovered new exit (range 5) 1292 | -10/Mines | Entered Exiles 1316 | -10/Exiles | Discovered new exit (range 15) 1371 | -10/Exiles | Met 8R-AWN 1395 | -10/Exiles | Met EX-HEX 1438 | -10/Exiles | Met EX-BIN 1457 | -10/Exiles | Met EX-DEC 1692 | -10/Exiles | Visited The Gauntlet 1868 | -10/Exiles | Build established: Hauler-Mutant 2005 | -10/Exiles | Learned location of Zion (-6) 2071 | -10/Exiles | Aligned with FarCom system 2073 | -10/Exiles | Given EX-Vault access code 2123 | -10/Exiles | Opened EX-Vault 2143 | -10/Exiles | Found YOLO Cannon 2188 | -10/Exiles | Warned to stay clear of 0b10 Research branches 2399 | -10/Exiles | Discovered new exit (range 14) 2425 | -10/Exiles | Left Exiles lab with YOLO Cannon 2425 | -10/Exiles | Entered Mines 2457 | -9/Mines | Learned Materials garrison access intel 2491 | -9/Mines | Discovered new exit (range 11) 2871 | -9/Mines | A weapon hastily lodged in a ceiling crevice suddenly fell to the ground 3139 | -9/Mines | Discovered new exit (range 13) 3240 | -9/Mines | Entered Materials 3240 | -8/Materials | Accompanied by 2 allies 3240 | -8/Materials | Evolved 4 slots: Utility x2, Weapon x2 3241 | -8/Materials | Identified exit to Factory 3245 | -8/Materials | Led the pair of lost Derelicts to an unsafe place 4698 | -8/Materials | Lost 3 parts (1p2w) 5664 | -8/Materials | Discovered exit to Factory (range 16) 5979 | -8/Materials | Repaired Hpw. Shotgun 6440 | -8/Materials | First assault squad dispatched 6557 | -8/Materials | Destroyed 14 combat bots 6818 | -8/Materials | Build established: Hauler-Skirmisher 6832 | -8/Materials | Entered Factory 6832 | -7/Factory | Evolved 2 slots: Utility x2 7232 | -7/Factory | First assault squad dispatched 7606 | -7/Factory | Discovered new exit (range 13) 7686 | -7/Factory | Entered Lower Caves 7978 | -7/Lower Caves | Build established: Hauler-Tank 8350 | -7/Lower Caves | Learned 8 Research zone layouts 8743 | -7/Lower Caves | Build established: Hauler-Mutant 9374 | -7/Lower Caves | Attracted the attention of an 0b10 checkpoint 9533 | -7/Lower Caves | Encountered a Warlord checkpoint 10582 | -7/Lower Caves | Plasma Cannon stolen by Master Thief 10927 | -7/Lower Caves | Build established: Hauler-Tank 11170 | -7/Lower Caves | Discovered new exit (range 10) 11895 | -7/Lower Caves | Entered another Lower Caves area 11896 | -7/Lower Caves | Identified exit to Factory 12922 | -7/Lower Caves | Build established: Hauler-Mutant 13723 | -7/Lower Caves | Spotted B-75 Beast 14011 | -7/Lower Caves | Discovered new exit (range 3) 14015 | -7/Lower Caves | Attracted the attention of an 0b10 checkpoint 14369 | -7/Lower Caves | Lost 5 parts (1n1u3w) 14386 | -7/Lower Caves | Destroyed B-75 Beast 14765 | -7/Lower Caves | Build established: Hauler-Tank 15170 | -7/Lower Caves | Entered Data Miner 15170 | -7/Data Miner | Discovered new exit (range 6) 15216 | -7/Data Miner | Met Data Miner 15269 | -7/Data Miner | Learned location of Section 7 (-2) 15269 | -7/Data Miner | Acquired the access code to Warlord's prototype stash 15319 | -7/Data Miner | Received God Mode back door access code from Data Miner 15372 | -7/Data Miner | Entered Proximity Caves 15651 | -6/Proximity Caves | Attracted the attention of an 0b10 outpost 15652 | -6/Proximity Caves | Escorted by Enhanced Grunt 15806 | -6/Proximity Caves | Build established: Hauler-Mutant 16493 | -6/Proximity Caves | Attracted the attention of an 0b10 checkpoint 16744 | -6/Proximity Caves | Build established: Hauler-Tank 16750 | -6/Proximity Caves | Snuck into a huge 0b10 base via the rear entrance 16853 | -6/Proximity Caves | Derelicts attacked a huge 0b10 base 17180 | -6/Proximity Caves | Spotted B-75 Beast 17189 | -6/Proximity Caves | Allies destroyed B-75 Beast 17604 | -6/Proximity Caves | Build established: Hauler-Mutant 17611 | -6/Proximity Caves | Learned Factory stockpile data 18463 | -6/Proximity Caves | Build established: Hauler-Tank 18626 | -6/Proximity Caves | Spotted B-75 Beast 18648 | -6/Proximity Caves | Destroyed B-75 Beast 18984 | -6/Proximity Caves | Found Alien Artifact 18984 | -6/Proximity Caves | Identified Dimensional Node Initializer 18984 | -6/Proximity Caves | Initialized slip node 19275 | -6/Proximity Caves | Build established: Hauler-Mutant 19786 | -6/Proximity Caves | Entered Factory 19786 | -6/Factory | Accompanied by 4 allies 19786 | -6/Factory | Evolved 2 slots: Utility x2 19787 | -6/Factory | Identified exit to Factory 19787 | -6/Factory | Identified exit to Extension 20094 | -6/Factory | Discovered new exit (range 16) 20496 | -6/Factory | Garrison activated, responded to threat 20599 | -6/Factory | Build established: Hauler-Skirmisher 21083 | -6/Factory | Fabricated A-02 Transporter (x1) 21134 | -6/Factory | Fabricated Humpback (x1) 21164 | -6/Factory | Fabricated Humpback (x1) 21681 | -6/Factory | Local fabrication network quarantined 22236 | -6/Factory | First assault squad dispatched 22260 | -6/Factory | Incoming assault squad redirected 22713 | -6/Factory | Garrison activated, responded to threat 23059 | -6/Factory | Build established: Hauler-Tank 23310 | -6/Factory | Incoming assault squad redirected 23786 | -6/Factory | Incoming assault squad redirected 24171 | -6/Factory | Lost 3 parts (1p1u1w) 24474 | -6/Factory | System corruption reached 10% 24706 | -6/Factory | Incoming assault squad redirected 24772 | -6/Factory | Build established: Hauler-Mutant 24870 | -6/Factory | Entered Extension 25067 | -6/Extension | Rescued a captive Derelict 25068 | -6/Extension | Rescued a captive Derelict 25185 | -6/Extension | Rescued a captive Derelict 25570 | -6/Extension | First assault squad dispatched 25615 | -6/Extension | Build established: Hauler-Tank 25628 | -6/Extension | Rescued a captive Derelict 25854 | -6/Extension | Spotted B-75 Beast 25913 | -6/Extension | Core integrity fell below 50% 26084 | -6/Extension | Energy Cycler disabled 26085 | -6/Extension | Rescued a captive Derelict 26086 | -6/Extension | Rescued a captive Derelict 26087 | -6/Extension | Rescued a captive Derelict 26091 | -6/Extension | Rescued a captive Derelict 26208 | -6/Extension | Core integrity fell below 20% 26220 | -6/Extension | Disrupted transfer network 26365 | -6/Extension | Discovered exit to Factory (range 14) 26366 | -6/Extension | Rescued A7 26607 | -6/Extension | Discovered exit to Factory (range 16) 26608 | -6/Extension | Discovered new exit (range 15) 26663 | -6/Extension | Build established: Scavenger-Tank 27031 | -6/Extension | Repaired Insulated Plating 27240 | -6/Extension | Disrupted transfer network 27246 | -6/Extension | Entered Factory 27246 | -5/Factory | Accompanied by 7 allies (A7) 27246 | -5/Factory | Evolved 2 slots: Propulsion x2 27622 | -5/Factory | Core integrity fell below 50% 27891 | -5/Factory | Build established: Mutant 27967 | -5/Factory | Incoming investigation squad redirected 28036 | -5/Factory | Discovered new exit (range 16) 28146 | -5/Factory | First assault squad dispatched 28153 | -5/Factory | Discovered new exit (range 15) 28165 | -5/Factory | Incoming assault squad redirected 28325 | -5/Factory | Incoming investigation squad redirected 28346 | -5/Factory | Garrison activated, responded to threat 28399 | -5/Factory | Destroyed 10 combat bots 28431 | -5/Factory | Lost 4 parts (1n2u1w) 28464 | -5/Factory | Incoming assault squad redirected 28465 | -5/Factory | Incoming assault squad redirected 28545 | -5/Factory | Repaired Nuclear Pulse Array 28674 | -5/Factory | Fabricated Humpback (x1) 28761 | -5/Factory | Incoming assault squad redirected 29075 | -5/Factory | Incoming assault squad redirected 29084 | -5/Factory | System corruption reached 10% 29094 | -5/Factory | Incoming assault squad redirected 29274 | -5/Factory | Core integrity fell below 20% 29418 | -5/Factory | Entered another Factory area 29418 | -4/Factory | Evolved 2 slots: Propulsion x2 29447 | -4/Factory | Lost 4 parts (1n2u1w) 29668 | -4/Factory | First assault squad dispatched 29692 | -4/Factory | Incoming assault squad redirected 29778 | -4/Factory | Incoming assault squad redirected 29841 | -4/Factory | Lost 3 parts (1n2w) 29972 | -4/Factory | Incoming investigation squad redirected 30126 | -4/Factory | Core integrity fell below 50% 30133 | -4/Factory | Core integrity fell below 20% 30134 | -4/Factory | Destroyed by G-67 Veteran with Plasma Rifle Last Messages --------------- Downloaded coordinate data. 30097_ O-24 Administrator: "IFF HANDSHAKE FAILED. SECURING TERMINAL." 30102_ Slug penetrates Wall. 30102_ Penetrated by Slug. 30102_ Terminal disabled. 30104_ Autogun destroyed. 30106_ ALERT: Hostiles spotted, dispatching reinforcements to Terminal F011. 30109_ Acquired 83 matter. 30116_ Hpw. Shock Rifle destroyed. 30116_ Nuclear Pulse Array destroyed. 30118_ Plasma Cutter destroyed. 30120_ Imp. Heat Sink destroyed. 30127_ C-30 ARC bursts open, deploying its payload. 30127_ G-73 Enforcer unfolds itself. 30127_ G-67 Veteran unfolds itself. 30127_ L-61 Swordsman unfolds itself. 30127_ B-60 Warrior unfolds itself. 30127_ I-47 Archangel unfolds itself. 30134_ System corrupted: Propulsion Shielding rejected. Map ----- +----------------------------------------------------+ | ###+##########????????????????????????????? | | """" # #????????????????????????????? | | """" # """" """" #????????????????????????????? | | """" # """" """" #????????????????????????????? | | """" # """" """" #????????????????????????????? | | """" # """" """" #????????????????????????????? | | """" # """" """" !#????????????????????????????? | | """" / """" """" #????????????????????????????? | | # """" """" ###########??????????????????? | | # ## #??????????????????? | | ## # ## """ #??????????????????? | | # # """ """ ## """ #??????????????????? | | # # """G""" ## """ #??????????????????? | | # ###########+### #??????????????????? | | # #?????????# #?# """ #??????????????????? | | # #?????????# #?# """ #??????????????????? | | # #?????????# #?# """ #??????????????????? | | # #?????????# #?# #??????????????????? | | # ########### #######+####??????????????????? | | ## #??????????????????? | | ?# #??????????????????? | | ?# #??????????????????? | | ## #??????????????????? | | #??????????????????? | | #################??????????????????? | | h # i glg b@ #?????????????????????? | | "" "" # % g g #?????????????????????? | | ""F"" + """"""" #?????????????????????? | | !![ """ # """"""" s #?????????????????????? | | ![[ h # """"""" ssg#?????????????????????? | | ![[ # """""""ss #?????????????????????? | | ##### "# b# " p mp #?????????????????????? | | ????#"T"# # """"""" #?????????????????????? | | ??#"""# " """"""" #?????????????????????? | | ##### # """"""" #?????????????????????? | | #???# + """"""" #?????????????????????? | | #???# # #?????????????????????? | | "" +?? ##############?????????????????????? | | ?" #?#####+###??????????????????????????????????? | | ??? #????????????????????????????????????????????? | | ?????????????????????????????????????????????????? | | ?????????????????????????????????????????????????? | | ?????????????????????????????????????????????????? | | ?????????????????????????????????????????????????? | | ?????????????????????????????????????????????????? | | ?????????????????????????????????????????????????? | | ?????????????????????????????????????????????????? | | ?????????????????????????????????????????????????? | | ?????????????????????????????????????????????????? | | ?????????????????????????????????????????????????? | +----------------------------------------------------+ Best States ------------- Heat Dissipation 57 Energy Generation 20 Energy Capacity 910 Matter Stores 376 Matter Capacity 400 Sight Range 16 Terrain Scan Density 10 Power Amplification 20 Additional Mass Support 9 Armor Coverage 975 Resistance: EM 15 Propulsion Shielding 33 Evasion (%) 73 Recoil Reduction 7 Offensive Hacking 11 Defensive Hacking 12 Item Schematics ----------------- Humpback | -8/Materials | Scanalyzed Adv. Signal Interpreter | -8/Materials | Scanalyzed System Backup Module | -8/Materials | Scanalyzed Hvy. Rocket Launcher | -8/Materials | Scanalyzed Hrd. Medium Armor Plating | -8/Materials | Scanalyzed Hacking Suite | -8/Materials | Scanalyzed Datajack | -8/Materials | Scanalyzed Mni. Grenade Launcher | -8/Materials | Scanalyzed Cesium-ion Thruster | -8/Materials | Scanalyzed Hvy. Armor Plating | -8/Materials | Scanalyzed Combat Drone Bay | -7/Data Miner | Free Lgt. Regenerative Plating | -7/Data Miner | Free Exp. Sensor Array | -7/Data Miner | Free Exp. Terrain Scan Processor | -7/Data Miner | Free Cloaking Device | -7/Data Miner | Free Antimatter Reactor | -6/Factory | Scanalyzed Adv. Assault Cannon | -6/Factory | Scanalyzed Imp. Carbon-fiber Leg | -6/Factory | Scanalyzed Disruptor Cannon | -6/Factory | Scanalyzed Drone Bay | -6/Factory | Scanalyzed Imp. Energy Well | -6/Factory | Scanalyzed Mic. Fission Core | -6/Factory | Scanalyzed Flexi-carbon Leg | -6/Factory | Scanalyzed Adv. Heat Sink | -6/Factory | Scanalyzed Insulated Plating | -6/Factory | Scanalyzed Robot Schematics ------------------ S-27 Virus | -7/Data Miner | Free G-50 Soldier | -7/Data Miner | Free G-67 Veteran | -7/Data Miner | Free X-72 Disruptor | -7/Data Miner | Free I-36 Angel | -7/Data Miner | Free I-47 Archangel | -7/Data Miner | Free Fabricated ------------ A-02 Transporter | x1 | -6/Factory | Preloaded Humpback | x1 | -6/Factory Humpback | x1 | -6/Factory Humpback | x1 | -5/Factory Alien Tech Used ----------------- Dimensional Node Initializer Achievements -------------- Use The Force Challenges ------------ None Game ------ Seed BehemothLatentNanosword Manual? 0 Play Time 04:14:03 Cumulative 145.5 hours Start 2022.02.26 @ 22:24:39 End 2022.02.27 @ 04:02:37 Sessions 1 Manual Loads 0 Difficulty Rogue Special Mode None Game No. 107 Rogue 107 Adventurer 0 Explorer 0 Win Type - Total 0 Types 0/0/0/0/0/0/0/0/0 Lore% 46 Gallery% 57 Achievement% 37 Wizard Run 0 Options --------- ASCII 0 Keyboard 0 Movement Numpad Keybinds 0 Fullscreen 1 Font 18/SmallcapsGlow Map View 76x50 Tactical HUD 1 Map Filters NONE Filters NONE Steam 1 RUN: bcd13647-7777-4439-82d0-065920fb73be